fUSD/lending_fUSD_20260123
["ID","MTS","AMOUNT","RATE_DAILY","PERIOD"]
[403070714,1769126536380,150.0,0.0001539,2]
[403070743,1769126655193,260.53594415,0.000156,2]
[403070745,1769126673988,200.0,0.00015174,2]
[403070783,1769126865278,906.47,0.00015192,2]
[403070805,1769127027660,-281.0,0.00015694,2]
[403070806,1769127027682,-277.97139496,0.00015694,2]
[403070807,1769127027703,-600.0,0.00015694,2]
[403070808,1769127027729,-73.52520023,0.00015694,2]
[403070813,1769127031510,-121.47479977,0.00015694,2]
[403070814,1769127031519,-346.75460179,0.000157,2]
[403070815,1769127031530,-153.24539821,0.000157,2]
[403070816,1769127031539,-300.0,0.00015709,2]
[403070817,1769127031548,-300.0,0.00015709,2]
[403070818,1769127031558,-300.0,0.00015709,2]
[403070819,1769127031567,-1200.0,0.00015709,2]
[403070820,1769127031575,-2559.68744482,0.0001571,2]
[403070821,1769127031646,-8108.35026846,0.0001571,2]
[403070822,1769127031657,-692.44056672,0.0001571,2]
[403070823,1769127031669,-499.50294632,0.0001571,2]
[403070838,1769127032968,-166.66,0.0001571,2]
[403070839,1769127037636,-4000.0,0.0001571,2]
[403070843,1769127037896,-415.14189687,0.0001571,2]
[403070844,1769127037908,-8608.54535819,0.0001571,2]
[403070846,1769127037919,-2633.09301862,0.0001571,2]
[403070847,1769127037928,-236.9685,0.0001571,2]
[403070848,1769127037938,-1000000.0,0.0001571,2]
[403070849,1769127037947,-1682.36,0.00015809,2]
[403070850,1769127037956,-171.51013392,0.00015811,2]
[403070851,1769127037965,-31754.25300245,0.00015847,2]
[403070852,1769127037974,-473.36190301,0.00015852,2]
[403070853,1769127037983,-422.81805724,0.00015852,2]
[403070854,1769127037992,-8646.00654007,0.00015852,2]
[403070855,1769127038001,-304.33331781,0.000159,2]
[403070856,1769127038011,-500.0,0.000159,2]
[403070857,1769127038020,-500.0,0.000159,2]
[403070858,1769127038030,-500.0,0.000159,2]
[403070859,1769127038039,-500.0,0.000159,2]
[403070860,1769127038049,-500.0,0.000159,2]
[403070861,1769127038059,-500.0,0.000159,2]
[403070862,1769127038068,-500.0,0.000159,2]
[403070863,1769127038078,-500.0,0.000159,2]
[403070864,1769127038087,-500.0,0.000159,2]
[403070865,1769127038096,-292.55827867,0.000159,2]
[403070866,1769127038106,-500.0,0.000159,2]
[403070867,1769127038115,-500.0,0.000159,2]
[403070869,1769127038124,-500.0,0.000159,2]
[403070870,1769127038133,-500.0,0.000159,2]
[403070872,1769127038143,-500.0,0.000159,2]
[403070874,1769127038152,-500.0,0.000159,2]
[403070876,1769127038161,-500.0,0.000159,2]
[403070878,1769127038171,-500.0,0.000159,2]
[403070880,1769127038180,-500.0,0.000159,2]
[403070882,1769127038189,-500.0,0.000159,2]
[403070884,1769127038198,-500.0,0.000159,2]
[403070886,1769127038207,-500.0,0.000159,2]
[403070888,1769127038217,-500.0,0.000159,2]
[403070890,1769127038226,-500.0,0.000159,2]
[403070892,1769127038236,-500.0,0.000159,2]
[403070894,1769127038245,-500.0,0.000159,2]
[403070896,1769127038255,-500.0,0.000159,2]
[403070897,1769127038264,-500.0,0.000159,2]
[403070900,1769127038274,-500.0,0.000159,2]
[403070901,1769127038283,-500.0,0.000159,2]
[403070904,1769127038293,-500.0,0.000159,2]
[403070906,1769127038302,-500.0,0.000159,2]
[403070907,1769127038311,-500.0,0.000159,2]
[403070909,1769127038320,-500.0,0.000159,2]
[403070911,1769127038330,-500.0,0.000159,2]
[403070913,1769127038339,-500.0,0.000159,2]
[403070915,1769127038348,-500.0,0.000159,2]
[403070917,1769127038357,-500.0,0.000159,2]
[403070919,1769127038367,-500.0,0.000159,2]
[403070921,1769127038376,-500.0,0.000159,2]
[403070923,1769127038385,-500.0,0.000159,2]
[403070924,1769127038395,-500.0,0.000159,2]
[403070925,1769127038404,-500.0,0.000159,2]
[403070926,1769127038414,-500.0,0.000159,2]
[403070927,1769127038423,-179.25582787,0.000159,2]
[403070928,1769127038432,-499.99999999,0.000159,2]
[403070929,1769127038441,-200.0,0.00015901,2]
[403070930,1769127038451,-500.0,0.00015901,2]
[403070931,1769127038460,-500.0,0.00015901,2]
[403070932,1769127038469,-500.0,0.00015901,2]
[403070933,1769127038479,-500.0,0.00015901,2]
[403070934,1769127038488,-500.0,0.00015901,2]
[403070935,1769127038497,-500.0,0.00015901,2]
[403070936,1769127038506,-500.0,0.00015901,2]
[403070937,1769127038516,-500.0,0.00015901,2]
[403070938,1769127038525,-500.0,0.00015901,2]
[403070939,1769127038534,-500.0,0.00015901,2]
[403070940,1769127038543,-500.0,0.00015901,2]
[403070941,1769127038553,-500.0,0.00015901,2]
[403070942,1769127038563,-151.0,0.00015905,2]
[403070943,1769127038572,-411.52938718,0.00015909,2]
[403070944,1769127038581,-500.0,0.00015909,2]
[403070945,1769127038591,-500.0,0.00015909,2]
[403070946,1769127038600,-159.99797795,0.00015909,2]
[403070947,1769127038610,-500.0,0.00015909,2]
[403070948,1769127038619,-500.0,0.00015909,2]
[403070949,1769127038627,-500.0,0.00015909,2]
[403070950,1769127038637,-500.0,0.00015909,2]
[403070951,1769127038646,-506.16656929,0.00015909,2]
[403070952,1769127038656,-500.0,0.00015909,2]
[403070953,1769127038665,-500.0,0.00015909,2]
[403070954,1769127038675,-500.0,0.00015909,2]
[403070955,1769127038684,-500.0,0.00015909,2]
[403070956,1769127038693,-500.0,0.00015909,2]
[403070957,1769127038701,-500.0,0.00015909,2]
[403070958,1769127038710,-500.0,0.00015909,2]
[403070959,1769127038723,-500.0,0.00015909,2]
[403070960,1769127038732,-800.91,0.00015909,2]
[403070961,1769127038741,-800.91,0.00015909,2]
[403070962,1769127038751,-800.91,0.00015909,2]
[403070963,1769127038761,-800.91,0.00015909,2]
[403070964,1769127038770,-500.0,0.00015909,2]
[403070965,1769127038780,-500.0,0.00015909,2]
[403070966,1769127038789,-788.42,0.00015909,2]
[403070967,1769127038801,-500.0,0.00015909,2]
[403070968,1769127038810,-500.0,0.00015909,2]
[403070969,1769127038820,-500.0,0.00015909,2]
[403070970,1769127038829,-169.71523397,0.00015909,2]
[403070971,1769127038839,-500.0,0.00015909,2]
[403070972,1769127038848,-500.0,0.00015909,2]
[403070973,1769127038857,-500.0,0.00015909,2]
[403070974,1769127038867,-500.0,0.00015909,2]
[403070975,1769127038880,-1130.47,0.00015909,2]
[403070976,1769127038889,-1130.47,0.00015909,2]
[403070977,1769127038898,-1130.47,0.00015909,2]
[403070978,1769127038908,-1130.47,0.00015909,2]
[403070979,1769127038918,-500.0,0.00015909,2]
[403070980,1769127038927,-500.0,0.00015909,2]
[403070981,1769127038936,-188.20213014,0.00015909,2]
[403070982,1769127038946,-500.0,0.00015909,2]
[403070983,1769127038955,-500.0,0.00015909,2]
[403070984,1769127038965,-447.92866097,0.00015909,2]
[403070985,1769127038974,-502.32638867,0.00015909,2]
[403070986,1769127038983,-500.0,0.00015909,2]
[403070987,1769127038992,-500.0,0.00015909,2]
[403070988,1769127039001,-500.0,0.00015909,2]
[403070989,1769127039011,-227.66390836,0.00015909,2]
[403070990,1769127039020,-361.90621734,0.00015909,2]
[403070991,1769127039030,-500.0,0.00015909,2]
[403070992,1769127039043,-349.9611531,0.00015909,2]
[403070993,1769127039053,-906.47,0.00015951,2]
[403070994,1769127039063,-31754.25300244,0.00016075,2]
[403070995,1769127039072,-8646.00654005,0.0001608,2]
[403070996,1769127039082,-9999.99,0.00016116,2]
[403070997,1769127039092,-1524.15,0.00016116,2]
[403070998,1769127039102,-9999.99,0.00016116,2]
[403070999,1769127039112,-332.97,0.00016116,2]
[403071000,1769127039121,-150.99,0.00016116,2]
[403071001,1769127039130,-788.42,0.00016183,2]
[403071002,1769127039139,-542.89957297,0.00016183,2]
[403071003,1769127039148,-473.36190297,0.00016193,2]
[403071004,1769127039158,-157.44687871,0.00016293,2]
[403071005,1769127039167,-31754.25300244,0.00016303,2]
[403071006,1769127039176,-8646.00654005,0.00016307,2]
[403071007,1769127039185,-500.0,0.00016361,2]
[403071008,1769127039195,-500.0,0.00016361,2]
[403071009,1769127039204,-500.0,0.00016361,2]
[403071010,1769127039214,-500.0,0.00016361,2]
[403071011,1769127039223,-500.0,0.00016361,2]
[403071012,1769127039234,-483.78166184,0.00016361,2]
[403071013,1769127039243,-500.0,0.00016361,2]
[403071014,1769127039254,-500.0,0.00016361,2]
[403071015,1769127039264,-380.57242531,0.00016361,2]
[403071016,1769127039273,-500.0,0.00016361,2]
[403071017,1769127039282,-500.0,0.00016361,2]
[403071018,1769127039292,-500.0,0.00016361,2]
[403071019,1769127039300,-500.0,0.00016361,2]
[403071020,1769127039309,-500.0,0.00016361,2]
[403071021,1769127039319,-500.0,0.00016361,2]
[403071022,1769127039328,-500.0,0.00016361,2]
[403071023,1769127039337,-422.81805724,0.00016426,2]
[403071024,1769127039346,-500.0,0.00016438,2]
[403071025,1769127039355,-500.0,0.00016438,2]
[403071026,1769127039365,-500.0,0.00016438,2]
[403071027,1769127039374,-500.0,0.00016438,2]
[403071028,1769127039383,-500.0,0.00016438,2]
[403071029,1769127039392,-500.0,0.00016438,2]
[403071030,1769127039402,-500.0,0.00016438,2]
[403071031,1769127039411,-500.0,0.00016438,2]
[403071032,1769127039420,-500.0,0.00016438,2]
[403071033,1769127039430,-500.0,0.00016438,2]
[403071034,1769127039439,-500.0,0.00016438,2]
[403071035,1769127039448,-500.0,0.00016438,2]
[403071036,1769127039458,-500.0,0.00016438,2]
[403071037,1769127039468,-495.67179885,0.00016438,2]
[403071038,1769127039477,-500.0,0.00016438,2]
[403071039,1769127039486,-500.0,0.00016438,2]
[403071040,1769127039496,-500.0,0.00016438,2]
[403071041,1769127039506,-500.0,0.00016438,2]
[403071042,1769127039515,-500.0,0.00016438,2]
[403071043,1769127039524,-500.0,0.00016438,2]
[403071044,1769127039534,-500.0,0.00016438,2]
[403071045,1769127039543,-500.0,0.00016438,2]
[403071046,1769127039554,-500.0,0.00016438,2]
[403071047,1769127039564,-500.0,0.00016438,2]
[403071048,1769127039573,-250.0,0.00016438,2]
[403071049,1769127039583,-250.0,0.00016438,2]
[403071050,1769127039594,-250.0,0.00016438,2]
[403071051,1769127039605,-250.0,0.00016438,2]
[403071052,1769127039615,-250.0,0.00016438,2]
[403071053,1769127039627,-250.0,0.00016438,2]
[403071054,1769127039637,-250.0,0.00016438,2]
[403071055,1769127039649,-250.0,0.00016438,2]
[403071056,1769127039659,-326.223354,0.00016438,2]
[403071057,1769127039668,-500.0,0.00016449,2]
[403071058,1769127039677,-788.42,0.00016457,2]
[403071059,1769127039686,-31754.25300244,0.00016531,2]
[403071060,1769127039697,-473.36190297,0.00016535,2]
[403071061,1769127039706,-8646.00654005,0.00016535,2]
[403071062,1769127039717,-1075.64649851,0.0001665,2]
[403071063,1769127039728,-906.47,0.00016711,2]
[403071064,1769127039739,-500.0,0.00016712,2]
[403071065,1769127039748,-788.42,0.00016731,2]
[403071066,1769127039759,-31754.25300244,0.00016759,2]
[403071067,1769127039769,-8646.00654005,0.00016762,2]
[403071068,1769127039779,-334.85,0.00016791,2]
[403071069,1769127039789,-500.0,0.00016802,2]
[403071070,1769127039799,-150.0,0.00016802,2]
[403071071,1769127039809,-500.0,0.00016802,2]
[403071072,1769127039818,-150.0,0.00016802,2]
[403071073,1769127039827,-500.0,0.00016802,2]
[403071074,1769127039837,-165.88,0.00016816,2]
[403071075,1769127039846,-400.0,0.00016824,2]
[403071076,1769127039856,-500.0,0.00016857,2]
[403071077,1769127039866,-150.0,0.00016857,2]
[403071078,1769127039876,-500.0,0.00016857,2]
[403071079,1769127039885,-500.0,0.00016857,2]
[403071080,1769127039894,-473.36190297,0.00016876,2]
[403071081,1769127039904,-500.0,0.00016912,2]
[403071082,1769127039913,-150.0,0.00016912,2]
[403071083,1769127039922,-500.0,0.00016912,2]
[403071084,1769127039932,-500.0,0.00016912,2]
[403071085,1769127039941,-500.0,0.00016966,2]
[403071086,1769127039951,-150.0,0.00016966,2]
[403071087,1769127039961,-500.0,0.00016966,2]
[403071088,1769127039970,-500.0,0.00016966,2]
[403071089,1769127039979,-200.0,0.00016983,2]
[403071090,1769127039989,-31754.25300244,0.00016988,2]
[403071091,1769127039998,-8646.00654005,0.0001699,2]
[403071092,1769127040008,-422.81805724,0.00016999,2]
[403071093,1769127040018,-250.0,0.00017,2]
[403071094,1769127040028,-788.42,0.00017005,2]
[403071095,1769127040037,-500.0,0.00017021,2]
[403071096,1769127040047,-231.5474637,0.00017021,2]
[403071097,1769127040056,-150.0,0.00017021,2]
[403071098,1769127040065,-450.0,0.00017021,2]
[403071099,1769127040075,-3106.0,0.0001703,2]
[403071100,1769127040085,-500.0,0.00017076,2]
[403071101,1769127040093,-200.0,0.00017095,2]
[403071102,1769127040103,-285.70443904,0.00017099,2]
[403071103,1769127040112,-1248.69114802,0.00017099,2]
[403071104,1769127040121,-1557.11500022,0.00017099,2]
[403071106,1769127040130,-7853.68022658,0.00017099,2]
[403071108,1769127040139,-250.0,0.00017099,2]
[403071110,1769127040148,-250.0,0.00017099,2]
[403071112,1769127040157,-250.0,0.00017099,2]
[403071114,1769127040166,-250.0,0.00017099,2]
[403071116,1769127040175,-250.0,0.00017099,2]
[403071118,1769127040184,-500.0,0.00017099,2]
[403071120,1769127040193,-289.88191886,0.00017099,2]
[403071122,1769127040203,-500.0,0.00017099,2]
[403071124,1769127040212,-500.0,0.00017099,2]
[403071126,1769127040221,-748.11534687,0.00017099,2]
[403071128,1769127040230,-500.0,0.00017099,2]
[403071130,1769127040239,-500.0,0.00017099,2]
[403071132,1769127040248,-500.0,0.00017099,2]
[403071134,1769127040257,-534.86645949,0.00017099,2]
[403071136,1769127040265,-3210.0,0.00017099,2]
[403071138,1769127040273,-500.0,0.00017099,2]
[403071140,1769127040282,-500.0,0.00017099,2]
[403071142,1769127040291,-500.0,0.00017099,2]
[403071143,1769127040299,-500.0,0.00017099,2]
[403071146,1769127040308,-500.0,0.00017099,2]
[403071148,1769127040318,-500.0,0.00017099,2]
[403071149,1769127040328,-500.0,0.00017099,2]
[403071151,1769127040337,-500.0,0.00017099,2]
[403071154,1769127040346,-500.0,0.00017099,2]
[403071156,1769127040355,-500.0,0.00017099,2]
[403071158,1769127040364,-500.0,0.00017099,2]
[403071159,1769127040373,-500.0,0.00017099,2]
[403071161,1769127040382,-500.0,0.00017099,2]
[403071163,1769127040391,-500.0,0.00017099,2]
[403071165,1769127040400,-500.0,0.00017099,2]
[403071167,1769127040410,-500.0,0.00017099,2]
[403071168,1769127040419,-151.0,0.00017099,2]
[403071170,1769127040429,-500.0,0.00017099,2]
[403071171,1769127040438,-151.0,0.00017099,2]
[403071172,1769127040447,-151.0,0.00017099,2]
[403071173,1769127040457,-500.0,0.00017099,2]
[403071174,1769127040467,-151.0,0.00017099,2]
[403071175,1769127040476,-500.0,0.00017099,2]
[403071176,1769127040485,-500.0,0.00017099,2]
[403071177,1769127040496,-151.0,0.00017099,2]
[403071178,1769127040506,-500.0,0.00017099,2]
[403071179,1769127040515,-500.0,0.00017099,2]
[403071180,1769127040524,-151.0,0.00017099,2]
[403071181,1769127040533,-500.0,0.00017099,2]
[403071182,1769127040542,-151.0,0.00017099,2]
[403071183,1769127040551,-500.0,0.00017099,2]
[403071184,1769127040560,-151.0,0.00017099,2]
[403071185,1769127040569,-500.0,0.00017099,2]
[403071186,1769127040579,-151.0,0.00017099,2]
[403071187,1769127040588,-500.0,0.00017099,2]
[403071188,1769127040597,-151.0,0.00017099,2]
[403071189,1769127040606,-500.0,0.00017099,2]
[403071190,1769127040615,-151.0,0.00017099,2]
[403071191,1769127040624,-500.0,0.00017099,2]
[403071192,1769127040633,-500.0,0.00017099,2]
[403071193,1769127040642,-500.0,0.00017099,2]
[403071194,1769127040653,-500.0,0.00017099,2]
[403071195,1769127040662,-500.0,0.00017131,2]
[403071196,1769127040670,-420.0,0.0001718,2]
[403071197,1769127040678,-31754.25300244,0.00017216,2]
[403071198,1769127040687,-473.36190297,0.00017217,2]
[403071199,1769127040696,-8646.00654005,0.00017217,2]
[403071200,1769127040707,-604.54147957,0.00017226,2]
[403071201,1769127040721,-500.0,0.00017226,2]
[403071202,1769127040732,-500.0,0.00017226,2]
[403071203,1769127040741,-800.91,0.00017226,2]
[403071204,1769127040750,-500.0,0.00017226,2]
[403071205,1769127040762,-1130.47,0.00017226,2]
[403071206,1769127040771,-156856.75,0.00017227,2]
[403071207,1769127040781,-250.0,0.00017233,2]
[403071208,1769127040791,-250.0,0.00017263,2]
[403071209,1769127040800,-300.0,0.00017263,2]
[403071210,1769127040810,-600.0,0.00017263,2]
[403071211,1769127040819,-5000.0,0.00017263,2]
[403071212,1769127040829,-300.0,0.00017263,2]
[403071213,1769127040838,-195.0,0.00017263,2]
[403071214,1769127040847,-200.0,0.00017263,2]
[403071215,1769127040856,-202.11619681,0.00017263,2]
[403071216,1769127040866,-250.0,0.00017263,2]
[403071217,1769127040875,-292.36869297,0.00017263,2]
[403071218,1769127040885,-193.0,0.00017263,2]
[403071219,1769127040895,-2500.0,0.00017263,2]
[403071220,1769127040905,-1680.0,0.00017267,2]
[403071221,1769127040916,-788.45,0.00017279,2]
[403071222,1769127040925,-204.66407085,0.00017355,2]
[403071223,1769127040935,-470.0,0.00017404,2]
[403071224,1769127040944,-31754.25300244,0.00017444,2]
[403071225,1769127040954,-8646.00654005,0.00017445,2]
[403071226,1769127040964,-906.47,0.00017471,2]
[403071227,1769127040974,-2414.0,0.0001754,2]
[403071228,1769127040983,-473.36190297,0.00017559,2]
[403071229,1769127040992,-8912.97263101,0.00017579,2]
[403071230,1769127041002,-470.0,0.00017589,2]
[403071231,1769127041011,-470.0,0.000176,2]
[403071232,1769127041021,-1857.57020595,0.0001764,2]
[403071233,1769127041030,-2838.64812796,0.0001765,2]
[403071234,1769127041039,-5007.71177343,0.0001765,2]
[403071235,1769127041048,-7491.23732148,0.0001765,2]
[403071236,1769127041057,-10135.9071,0.0001765,2]
[403071237,1769127041067,-31754.25300244,0.00017672,2]
[403071238,1769127041076,-500.0,0.00017673,2]
[403071239,1769127041085,-490.42703734,0.00017673,2]
[403071240,1769127041094,-500.0,0.00017673,2]
[403071241,1769127041103,-500.0,0.00017673,2]
[403071242,1769127041112,-500.0,0.00017673,2]
[403071243,1769127041121,-215.05133739,0.00017673,2]
[403071244,1769127041131,-500.0,0.00017673,2]
[403071245,1769127041140,-500.0,0.00017673,2]
[403071246,1769127041150,-500.0,0.00017673,2]
[403071247,1769127041159,-500.0,0.00017673,2]
[403071248,1769127041168,-514.13913965,0.00017673,2]
[403071249,1769127041177,-500.0,0.00017673,2]
[403071250,1769127041187,-500.0,0.00017673,2]
[403071251,1769127041195,-546.39725778,0.00017673,2]
[403071252,1769127041205,-470.0,0.00017677,2]
[403071253,1769127041215,-1000.0,0.000177,2]
[403071254,1769127041225,-166.66,0.00017744,2]
[403071255,1769127041234,-280.0,0.00017781,2]
[403071256,1769127041243,-10000.0,0.00017788,2]
[403071257,1769127041253,-1000.0,0.000178,2]
[403071258,1769127041263,-150.0,0.00017808,2]
[403071259,1769127041272,-500.0,0.00017808,2]
[403071260,1769127041283,-150.0,0.00017863,2]
[403071261,1769127041293,-500.0,0.00017863,2]
[403071262,1769127041303,-151.0,0.0001788,2]
[403071263,1769127041312,-25000.0,0.000179,3]
[403071264,1769127041321,-171.51013392,0.000179,2]
[403071265,1769127041330,-25000.0,0.000179,3]
[403071266,1769127041339,-1000.0,0.000179,2]
[403071267,1769127041348,-4686.76452028,0.000179,2]
[403071268,1769127041358,-31754.25300244,0.000179,2]
[403071269,1769127041367,-473.36190297,0.000179,2]
[403071270,1769127041376,-5165.28482045,0.000179,2]
[403071271,1769127041385,-832.46973648,0.000179,2]
[403071272,1769127041394,-190.22827702,0.000179,3]
[403071273,1769127041403,-150.0,0.00017918,2]
[403071274,1769127041412,-500.0,0.00017918,2]
[403071275,1769127041421,-150.0,0.00017972,2]
[403071276,1769127041431,-500.0,0.00017972,2]
[403071277,1769127041439,-30935.0,0.00017973,2]
[403071278,1769127041449,-500.0,0.00017973,2]
[403071279,1769127041458,-150.0,0.00017973,2]
[403071280,1769127041467,-500.0,0.00017982,2]
[403071281,1769127041476,-157.44687871,0.0001799,2]
[403071282,1769127041484,-157.44687871,0.0001799,2]
[403071283,1769127041494,-264.11485995,0.00017999,2]
[403071284,1769127041503,-1098.24422299,0.00017999,5]
[403071285,1769127041512,-1104.26040629,0.00017999,5]
[403071286,1769127041521,-500.0,0.00017999,2]
[403071287,1769127041530,-500.0,0.00017999,2]
[403071288,1769127041539,-500.0,0.00017999,2]
[403071289,1769127041548,-508.16450939,0.00017999,2]
[403071290,1769127041558,-800.91,0.00017999,2]
[403071291,1769127041567,-800.91,0.00017999,2]
[403071292,1769127041576,-800.91,0.00017999,2]
[403071293,1769127041585,-800.91,0.00017999,2]
[403071294,1769127041594,-800.91,0.00017999,2]
[403071295,1769127041603,-800.91,0.00017999,2]
[403071296,1769127041612,-800.91,0.00017999,2]
[403071297,1769127041621,-800.91,0.00017999,2]
[403071298,1769127041631,-800.91,0.00017999,2]
[403071299,1769127041640,-800.91,0.00017999,2]
[403071300,1769127041649,-800.91,0.00017999,2]
[403071301,1769127041659,-800.91,0.00017999,2]
[403071302,1769127041668,-800.91,0.00017999,2]
[403071303,1769127041677,-800.91,0.00017999,2]
[403071304,1769127041686,-800.91,0.00017999,2]
[403071305,1769127041696,-800.91,0.00017999,2]
[403071306,1769127041706,-800.91,0.00017999,2]
[403071307,1769127041717,-800.91,0.00017999,2]
[403071308,1769127041727,-801.06993185,0.00017999,2]
[403071309,1769127041735,-300.0,0.00017999,2]
[403071310,1769127041744,-500.0,0.00017999,2]
[403071311,1769127041755,-500.0,0.00017999,2]
[403071312,1769127041764,-500.0,0.00017999,2]
[403071313,1769127041772,-500.0,0.00017999,2]
[403071314,1769127041781,-500.0,0.00017999,2]
[403071315,1769127041790,-521.75,0.00017999,2]
[403071316,1769127041800,-1130.47,0.00017999,2]
[403071317,1769127041810,-1130.47,0.00017999,2]
[403071318,1769127041819,-1130.47,0.00017999,2]
[403071319,1769127041828,-1130.47,0.00017999,2]
[403071320,1769127041838,-1130.47,0.00017999,2]
[403071321,1769127042051,-1130.47,0.00017999,2]
[403071322,1769127042061,-1130.47,0.00017999,2]
[403071323,1769127042070,-1130.47,0.00017999,2]
[403071324,1769127042079,-1130.47,0.00017999,2]
[403071325,1769127042088,-1130.47,0.00017999,2]
[403071326,1769127042097,-1130.47,0.00017999,2]
[403071327,1769127042107,-1130.47,0.00017999,2]
[403071328,1769127042117,-1130.47,0.00017999,2]
[403071329,1769127042126,-1130.47,0.00017999,2]
[403071330,1769127042135,-1130.47,0.00017999,2]
[403071331,1769127042145,-1130.47,0.00017999,2]
[403071332,1769127042154,-1130.47,0.00017999,2]
[403071333,1769127042163,-1130.47,0.00017999,2]
[403071334,1769127042172,-1130.62215791,0.00017999,2]
[403071335,1769127042182,-300.0,0.00017999,2]
[403071336,1769127042192,-1613073.24408951,0.00018,2]
[403071337,1769127042202,-151.0,0.00018,2]
[403071338,1769127042211,-1390933.44176602,0.00018,2]
[403071339,1769127042227,-694.84877467,0.00018,2]
[403071350,1769127042788,-90499.99999995,0.00018,2]
[403071351,1769127042801,-7986025.65702166,0.00018,2]
[403071352,1769127042930,-308.24512791,0.00018,2]
[403071354,1769127045564,-606.2501243,0.00017672,2]
[403071372,1769127173254,708200.18603751,0.0001561,2]
[403071373,1769127173289,291799.81396249,0.0001561,2]
[403071379,1769127302978,-3274.283925,0.0001563,2]
[403071393,1769127324617,3451.44215,0.0001561,2]
[403071394,1769127324644,10000.01,0.0001561,2]
[403071395,1769127324762,10000.01,0.0001561,2]
[403071396,1769127324789,10000.01,0.0001561,2]
[403071397,1769127324819,10000.01,0.0001561,2]
[403071398,1769127324847,10000.01,0.0001561,2]
[403071399,1769127324875,10000.01,0.0001561,2]
[403071400,1769127324903,10000.01,0.0001561,2]
[403071401,1769127324931,10000.01,0.0001561,2]
[403071402,1769127324959,10000.01,0.0001561,2]
[403071403,1769127324996,708200.18603751,0.0001561,2]
[403071404,1769127347121,-5151.67716762,0.0001561,2]
[403071405,1769127347775,-10000.01,0.0001561,2]
[403071406,1769127348198,-10000.01,0.0001561,2]
[403071407,1769127348963,-10000.01,0.0001561,2]
[403071408,1769127415058,4359.46,0.00013805,2]
[403071409,1769127505862,471.4285,0.0001551,2]
[403071410,1769127572054,9528.5815,0.0001551,2]
[403071411,1769127572078,10000.01,0.0001551,2]
[403071412,1769127572102,10000.01,0.0001551,2]
[403071413,1769127572125,663.75233539,0.0001551,2]
[403071414,1769127631265,9336.25766461,0.0001551,2]
[403071415,1769127631291,10000.01,0.0001551,2]
[403071416,1769127631314,10000.01,0.0001551,2]
[403071417,1769127631336,10000.01,0.0001551,2]
[403071418,1769127631359,10000.01,0.0001551,2]
[403071419,1769127631383,10000.01,0.0001551,2]
[403071420,1769127631407,10000.01,0.0001551,2]
[403071421,1769127631431,10000.01,0.0001551,2]
[403071422,1769127631453,9839.63973539,0.0001551,2]
[403071423,1769127713126,236.9685,0.0001551,2]
[403071424,1769127780284,157.052,0.0001551,2]
[403071425,1769127986109,247.856643,0.00015516,2]
[403071426,1769127990648,150.0,0.00015335,2]
[403071427,1769127990825,150.0,0.0001539,2]